[Event "Titled Tuesday Blitz April 25 Early 2023"]
[White "Fiorito, Francisco"]
[Black "Putri, Regita Desyari"]
[WhiteFideId "180165"]
[BlackFideId "7109083"]
[WhiteElo "2341"]
[BlackElo "1930"]
[Result "1-0"]
[Round "10"]
[TimeControl "180+2"]
[Date "2023.04.25"]
[WhiteClock "0:00:13"]
[BlackClock "0:00:01"]

1. d4 {[%clk 0:03:00]}  Nf6 {[%clk 0:02:56]} 2. Nc3 {[%clk 0:02:59]}  d5 {[%clk 0:02:56]} 3. Bf4 {[%clk 0:02:59]}  a6 {[%clk 0:02:52]} 4. e3 {[%clk 0:02:58]}  e6 {[%clk 0:02:51]} 5. g4 {[%clk 0:02:58]}  Bd6 {[%clk 0:02:48]} 6. g5 {[%clk 0:02:55]}  Bxf4 {[%clk 0:02:39]} 7. gxf6 {[%clk 0:02:52]}  Bd6 {[%clk 0:02:39]} 8. fxg7 {[%clk 0:02:52]}  Rg8 {[%clk 0:02:39]} 9. Qf3 {[%clk 0:02:51]}  Rxg7 {[%clk 0:02:37]} 10. Bd3 {[%clk 0:02:49]}  Nd7 {[%clk 0:02:35]} 11. Nge2 {[%clk 0:02:47]}  Qf6 {[%clk 0:02:33]} 12. Qxf6 {[%clk 0:02:40]}  Nxf6 {[%clk 0:02:33]} 13. Ng3 {[%clk 0:02:39]}  Ke7 {[%clk 0:02:14]} 14. Ke2 {[%clk 0:02:30]}  Bd7 {[%clk 0:02:13]} 15. Rag1 {[%clk 0:02:29]}  Rag8 {[%clk 0:02:13]} 16. Rg2 {[%clk 0:02:20]}  c5 {[%clk 0:02:09]} 17. dxc5 {[%clk 0:02:17]}  Bxc5 {[%clk 0:02:10]} 18. Rhg1 {[%clk 0:02:17]}  Kf8 {[%clk 0:02:09]} 19. f4 {[%clk 0:01:56]}  Bc6 {[%clk 0:01:58]} 20. Rf2 {[%clk 0:01:14]}  h5 {[%clk 0:01:32]} 21. Re1 {[%clk 0:00:56]}  Ng4 {[%clk 0:01:21]} 22. Nd1 {[%clk 0:00:44]}  Nxf2 {[%clk 0:01:19]} 23. Nxf2 {[%clk 0:00:45]}  Rh8 {[%clk 0:01:10]} 24. c3 {[%clk 0:00:39]}  h4 {[%clk 0:01:10]} 25. Nf1 {[%clk 0:00:39]}  Be7 {[%clk 0:00:44]} 26. Kf3 {[%clk 0:00:31]}  h3 {[%clk 0:00:42]} 27. Ng3 {[%clk 0:00:23]}  Bh4 {[%clk 0:00:38]} 28. Ng4 {[%clk 0:00:20]}  Bxg3 {[%clk 0:00:34]} 29. hxg3 {[%clk 0:00:19]}  h2 {[%clk 0:00:34]} 30. Rh1 {[%clk 0:00:17]}  d4+ {[%clk 0:00:30]} 31. e4 {[%clk 0:00:17]}  f5 {[%clk 0:00:28]} 32. Nf2 {[%clk 0:00:17]}  dxc3 {[%clk 0:00:27]} 33. bxc3 {[%clk 0:00:17]}  Rd7 {[%clk 0:00:26]} 34. Ke3 {[%clk 0:00:17]}  fxe4 {[%clk 0:00:25]} 35. Bxe4 {[%clk 0:00:17]}  Bb5 {[%clk 0:00:19]} 36. Ng4 {[%clk 0:00:16]}  Rc7 {[%clk 0:00:18]} 37. Kd4 {[%clk 0:00:13]}  Ke7 {[%clk 0:00:17]} 38. Rxh2 {[%clk 0:00:13]}  Rxh2 {[%clk 0:00:17]} 39. Nxh2 {[%clk 0:00:14]}  Rd7+ {[%clk 0:00:18]} 40. Ke3 {[%clk 0:00:14]}  Rd1 {[%clk 0:00:17]} 41. Nf3 {[%clk 0:00:14]}  Ra1 {[%clk 0:00:18]} 42. g4 {[%clk 0:00:14]}  Rxa2 {[%clk 0:00:18]} 43. g5 {[%clk 0:00:15]}  Re2+ {[%clk 0:00:18]} 44. Kd4 {[%clk 0:00:16]}  a5 {[%clk 0:00:07]} 45. Ne5 {[%clk 0:00:16]}  Rd2+ {[%clk 0:00:06]} 46. Ke3 {[%clk 0:00:16]}  Rd8 {[%clk 0:00:05]} 47. c4 {[%clk 0:00:15]}  Bc6 {[%clk 0:00:04]} 48. Bxc6 {[%clk 0:00:14]}  Rc8 {[%clk 0:00:02]} 49. Bb5 {[%clk 0:00:14]}  Rg8 {[%clk 0:00:01]} 50. g6 {[%clk 0:00:14]}  Kd6 {[%clk 0:00:01]} 51. Kd4 {[%clk 0:00:13]} 1-0


[Site "https://www.chess.com"]

[Event "Titled Tuesday Blitz April 25 Early 2023"]
[White "Hambleton, Aman"]
[Black "Goldin, Roman"]
[WhiteFideId "2606577"]
[BlackFideId "2803860"]
[WhiteElo "2511"]
[BlackElo "2312"]
[Result "1-0"]
[Round "10"]
[TimeControl "180+2"]
[Date "2023.04.25"]
[WhiteClock "0:00:04"]
[BlackClock "0:00:01"]

1. d4 {[%clk 0:03:00]}  Nf6 {[%clk 0:02:59]} 2. Bf4 {[%clk 0:03:01]}  d6 {[%clk 0:02:58]} 3. e3 {[%clk 0:03:01]}  g6 {[%clk 0:02:58]} 4. h3 {[%clk 0:03:01]}  Bg7 {[%clk 0:02:59]} 5. Bh2 {[%clk 0:03:02]}  O-O {[%clk 0:02:59]} 6. Nf3 {[%clk 0:03:03]}  c5 {[%clk 0:02:59]} 7. c3 {[%clk 0:03:03]}  Nc6 {[%clk 0:02:59]} 8. Be2 {[%clk 0:03:00]}  cxd4 {[%clk 0:02:51]} 9. exd4 {[%clk 0:03:01]}  Nd5 {[%clk 0:02:45]} 10. O-O {[%clk 0:03:01]}  e5 {[%clk 0:02:45]} 11. c4 {[%clk 0:03:01]}  Nf4 {[%clk 0:02:44]} 12. Bxf4 {[%clk 0:03:01]}  exf4 {[%clk 0:02:44]} 13. Qd2 {[%clk 0:02:58]}  Qf6 {[%clk 0:02:41]} 14. Rd1 {[%clk 0:02:58]}  Re8 {[%clk 0:02:37]} 15. Nc3 {[%clk 0:02:58]}  g5 {[%clk 0:02:30]} 16. Nd5 {[%clk 0:02:41]}  Qd8 {[%clk 0:02:29]} 17. Bd3 {[%clk 0:02:41]}  Be6 {[%clk 0:02:15]} 18. Nc3 {[%clk 0:02:41]}  d5 {[%clk 0:01:58]} 19. Bc2 {[%clk 0:02:21]}  Nb4 {[%clk 0:01:45]} 20. Ba4 {[%clk 0:02:03]}  dxc4 {[%clk 0:01:02]} 21. Bxe8 {[%clk 0:01:45]}  Qxe8 {[%clk 0:01:02]} 22. Nxg5 {[%clk 0:01:45]}  Nd5 {[%clk 0:00:57]} 23. Nxe6 {[%clk 0:01:41]}  fxe6 {[%clk 0:00:52]} 24. Re1 {[%clk 0:01:21]}  Qf7 {[%clk 0:00:51]} 25. Qe2 {[%clk 0:01:21]}  Bxd4 {[%clk 0:00:42]} 26. Qxe6 {[%clk 0:00:46]}  Nxc3 {[%clk 0:00:36]} 27. Qxf7+ {[%clk 0:00:05]}  Kxf7 {[%clk 0:00:36]} 28. Rac1 {[%clk 0:00:06]}  Nd5 {[%clk 0:00:20]} 29. Rxc4 {[%clk 0:00:07]}  Bf6 {[%clk 0:00:19]} 30. Rd1 {[%clk 0:00:04]}  Rd8 {[%clk 0:00:19]} 31. a4 {[%clk 0:00:02]}  Bxb2 {[%clk 0:00:16]} 32. Rb1 {[%clk 0:00:01]}  Nb6 {[%clk 0:00:08]} 33. Rc7+ {[%clk 0:00:01]}  Rd7 {[%clk 0:00:01]} 34. Rxd7+ {[%clk 0:00:02]}  Nxd7 {[%clk 0:00:02]} 35. Rxb2 {[%clk 0:00:02]}  Nc5 {[%clk 0:00:02]} 36. Rb4 {[%clk 0:00:01]}  Ke6 {[%clk 0:00:02]} 37. Rxf4 {[%clk 0:00:02]}  a5 {[%clk 0:00:02]} 38. Rh4 {[%clk 0:00:02]}  Kd5 {[%clk 0:00:02]} 39. Kf1 {[%clk 0:00:02]}  Kc6 {[%clk 0:00:02]} 40. Ke2 {[%clk 0:00:02]}  b6 {[%clk 0:00:02]} 41. Kd2 {[%clk 0:00:02]}  b5 {[%clk 0:00:02]} 42. axb5+ {[%clk 0:00:03]}  Kxb5 {[%clk 0:00:02]} 43. Rxh7 {[%clk 0:00:03]}  a4 {[%clk 0:00:03]} 44. Ra7 {[%clk 0:00:04]}  Kb4 {[%clk 0:00:02]} 45. h4 {[%clk 0:00:04]}  Kb3 {[%clk 0:00:02]} 46. h5 {[%clk 0:00:04]}  a3 {[%clk 0:00:03]} 47. h6 {[%clk 0:00:04]}  a2 {[%clk 0:00:01]} 48. Rxa2 {[%clk 0:00:04]}  Kxa2 {[%clk 0:00:01]} 49. h7 {[%clk 0:00:04]} 1-0


[Site "https://www.chess.com"]

[Event "Titled Tuesday Blitz April 25 Early 2023"]
[White "Bilan, Danila"]
[Black "Csonka, Balazs"]
[WhiteFideId "24161918"]
[BlackFideId "742910"]
[WhiteElo "2182"]
[BlackElo "2404"]
[Result "0-1"]
[Round "10"]
[TimeControl "180+2"]
[Date "2023.04.25"]
[WhiteClock "0:00:10"]
[BlackClock "0:00:28"]

1. d4 {[%clk 0:03:00]}  d5 {[%clk 0:02:51]} 2. Nf3 {[%clk 0:03:00]}  Nf6 {[%clk 0:02:51]} 3. c4 {[%clk 0:03:00]}  e6 {[%clk 0:02:51]} 4. Nc3 {[%clk 0:03:00]}  dxc4 {[%clk 0:02:46]} 5. e3 {[%clk 0:02:58]}  c5 {[%clk 0:02:41]} 6. Bxc4 {[%clk 0:02:57]}  a6 {[%clk 0:02:37]} 7. a3 {[%clk 0:02:46]}  b5 {[%clk 0:02:32]} 8. Ba2 {[%clk 0:02:45]}  Bb7 {[%clk 0:02:33]} 9. O-O {[%clk 0:02:45]}  Nbd7 {[%clk 0:02:33]} 10. Qe2 {[%clk 0:02:33]}  Bd6 {[%clk 0:02:18]} 11. dxc5 {[%clk 0:02:16]}  Bxc5 {[%clk 0:02:06]} 12. e4 {[%clk 0:02:14]}  Qb8 {[%clk 0:01:55]} 13. Bg5 {[%clk 0:01:20]}  O-O {[%clk 0:01:51]} 14. Rac1 {[%clk 0:01:15]}  Be7 {[%clk 0:01:16]} 15. Rfd1 {[%clk 0:01:06]}  Rd8 {[%clk 0:01:17]} 16. e5 {[%clk 0:00:54]}  Bxf3 {[%clk 0:01:15]} 17. exf6 {[%clk 0:00:51]}  Bxe2 {[%clk 0:00:59]} 18. fxe7 {[%clk 0:00:50]}  Re8 {[%clk 0:00:47]} 19. Rxd7 {[%clk 0:00:46]}  Bc4 {[%clk 0:00:43]} 20. Rd8 {[%clk 0:00:14]}  Qe5 {[%clk 0:00:31]} 21. Rcd1 {[%clk 0:00:13]}  Qxg5 {[%clk 0:00:29]} 22. Rxa8 {[%clk 0:00:10]}  Rxa8 {[%clk 0:00:30]} 23. Bxc4 {[%clk 0:00:09]}  bxc4 {[%clk 0:00:28]} 24. Ne4 {[%clk 0:00:10]} 0-1


[Site "https://www.chess.com"]

[Event "Titled Tuesday Blitz April 25 Early 2023"]
[White "Rios Escobar, Adan"]
[Black "Nikologorskiy, Konstantin"]
[WhiteFideId "3403645"]
[BlackFideId "24111708"]
[WhiteElo "2502"]
[BlackElo "2293"]
[Result "0-1"]
[Round "10"]
[TimeControl "180+2"]
[Date "2023.04.25"]
[WhiteClock "0:00:03"]
[BlackClock "0:00:25"]

1. d4 {[%clk 0:03:00]}  Nf6 {[%clk 0:02:52]} 2. g3 {[%clk 0:03:01]}  e6 {[%clk 0:02:51]} 3. c4 {[%clk 0:03:00]}  Be7 {[%clk 0:02:52]} 4. Nf3 {[%clk 0:02:59]}  d5 {[%clk 0:02:53]} 5. Bg2 {[%clk 0:03:00]}  O-O {[%clk 0:02:53]} 6. O-O {[%clk 0:03:00]}  dxc4 {[%clk 0:02:53]} 7. Qc2 {[%clk 0:03:01]}  a6 {[%clk 0:02:53]} 8. a4 {[%clk 0:03:01]}  Bd7 {[%clk 0:02:50]} 9. Rd1 {[%clk 0:03:02]}  Bc6 {[%clk 0:02:50]} 10. Nc3 {[%clk 0:03:02]}  a5 {[%clk 0:02:39]} 11. e4 {[%clk 0:02:59]}  Na6 {[%clk 0:02:39]} 12. Ne5 {[%clk 0:02:59]}  Nb4 {[%clk 0:02:38]} 13. Qe2 {[%clk 0:03:00]}  Re8 {[%clk 0:02:34]} 14. Nxc4 {[%clk 0:02:58]}  b6 {[%clk 0:02:28]} 15. Ne5 {[%clk 0:02:47]}  Bb7 {[%clk 0:02:28]} 16. Bf4 {[%clk 0:02:42]}  Nd7 {[%clk 0:02:27]} 17. Nf3 {[%clk 0:02:35]}  Rc8 {[%clk 0:02:27]} 18. Rac1 {[%clk 0:02:34]}  Bd6 {[%clk 0:02:09]} 19. Bg5 {[%clk 0:02:26]}  Be7 {[%clk 0:01:58]} 20. Bf4 {[%clk 0:02:26]}  Bd6 {[%clk 0:01:56]} 21. Bxd6 {[%clk 0:02:09]}  cxd6 {[%clk 0:01:55]} 22. Nb5 {[%clk 0:02:09]}  Qe7 {[%clk 0:01:51]} 23. e5 {[%clk 0:01:57]}  dxe5 {[%clk 0:01:45]} 24. dxe5 {[%clk 0:01:58]}  Rxc1 {[%clk 0:01:43]} 25. Rxc1 {[%clk 0:01:59]}  Nc5 {[%clk 0:01:36]} 26. Nd6 {[%clk 0:01:57]}  Rd8 {[%clk 0:01:27]} 27. Qe3 {[%clk 0:01:42]}  Bd5 {[%clk 0:01:07]} 28. h4 {[%clk 0:01:19]}  f6 {[%clk 0:01:03]} 29. Nc4 {[%clk 0:01:06]}  Ncd3 {[%clk 0:00:50]} 30. Rc3 {[%clk 0:00:45]}  Bxc4 {[%clk 0:00:48]} 31. Rxc4 {[%clk 0:00:45]}  Nxb2 {[%clk 0:00:49]} 32. exf6 {[%clk 0:00:37]}  Qxf6 {[%clk 0:00:44]} 33. Rf4 {[%clk 0:00:35]}  Nd5 {[%clk 0:00:38]} 34. Rxf6 {[%clk 0:00:20]}  Nxe3 {[%clk 0:00:37]} 35. Rxe6 {[%clk 0:00:19]}  Nxg2 {[%clk 0:00:35]} 36. Kxg2 {[%clk 0:00:18]}  Nxa4 {[%clk 0:00:36]} 37. Re7 {[%clk 0:00:08]}  Nc5 {[%clk 0:00:33]} 38. Re5 {[%clk 0:00:05]}  a4 {[%clk 0:00:33]} 39. Re3 {[%clk 0:00:04]}  Ra8 {[%clk 0:00:32]} 40. Ra3 {[%clk 0:00:04]}  b5 {[%clk 0:00:32]} 41. Nd4 {[%clk 0:00:04]}  b4 {[%clk 0:00:32]} 42. Ra1 {[%clk 0:00:02]}  b3 {[%clk 0:00:32]} 43. Nb5 {[%clk 0:00:01]}  b2 {[%clk 0:00:32]} 44. Rb1 {[%clk 0:00:01]}  a3 {[%clk 0:00:32]} 45. Nxa3 {[%clk 0:00:02]}  Rxa3 {[%clk 0:00:32]} 46. Rxb2 {[%clk 0:00:03]}  Nd3 {[%clk 0:00:30]} 47. Rd2 {[%clk 0:00:03]}  h5 {[%clk 0:00:30]} 48. Re2 {[%clk 0:00:01]}  Kh7 {[%clk 0:00:30]} 49. Rd2 {[%clk 0:00:02]}  Ne5 {[%clk 0:00:30]} 50. Re2 {[%clk 0:00:02]}  Ng4 {[%clk 0:00:31]} 51. Rd2 {[%clk 0:00:01]}  Kg6 {[%clk 0:00:30]} 52. Rc2 {[%clk 0:00:01]}  Kf5 {[%clk 0:00:28]} 53. Rc5+ {[%clk 0:00:01]}  Kg6 {[%clk 0:00:28]} 54. Rg5+ {[%clk 0:00:01]}  Kh6 {[%clk 0:00:28]} 55. Rf5 {[%clk 0:00:01]}  Ra2 {[%clk 0:00:29]} 56. Rf4 {[%clk 0:00:02]}  Kg6 {[%clk 0:00:29]} 57. Rf8 {[%clk 0:00:02]}  Nf6 {[%clk 0:00:29]} 58. Rd8 {[%clk 0:00:01]}  Kf7 {[%clk 0:00:27]} 59. Rd6 {[%clk 0:00:01]}  Ng4 {[%clk 0:00:28]} 60. Rd7+ {[%clk 0:00:01]}  Kf6 {[%clk 0:00:26]} 61. Rd6+ {[%clk 0:00:01]}  Ke5 {[%clk 0:00:26]} 62. Rg6 {[%clk 0:00:02]}  Rxf2+ {[%clk 0:00:27]} 63. Kg1 {[%clk 0:00:02]}  Rf7 {[%clk 0:00:25]} 64. Rg5+ {[%clk 0:00:03]}  Ke4 {[%clk 0:00:26]} 65. Rxh5 {[%clk 0:00:03]}  Kf3 {[%clk 0:00:26]} 66. Rg5 {[%clk 0:00:01]}  Kxg3 {[%clk 0:00:26]} 67. h5 {[%clk 0:00:02]}  Ra7 {[%clk 0:00:27]} 68. Kf1 {[%clk 0:00:01]}  Ra2 {[%clk 0:00:27]} 69. h6 {[%clk 0:00:01]}  gxh6 {[%clk 0:00:27]} 70. Rh5 {[%clk 0:00:01]}  Kf3 {[%clk 0:00:26]} 71. Rf5+ {[%clk 0:00:01]}  Kg3 {[%clk 0:00:24]} 72. Rh5 {[%clk 0:00:02]}  Ra7 {[%clk 0:00:21]} 73. Ke1 {[%clk 0:00:01]}  Rg7 {[%clk 0:00:21]} 74. Rf5 {[%clk 0:00:01]}  Rg5 {[%clk 0:00:21]} 75. Rf6 {[%clk 0:00:01]}  h5 {[%clk 0:00:22]} 76. Rf7 {[%clk 0:00:01]}  h4 {[%clk 0:00:23]} 77. Rh7 {[%clk 0:00:02]}  h3 {[%clk 0:00:23]} 78. Kf1 {[%clk 0:00:02]}  Rf5+ {[%clk 0:00:23]} 79. Kg1 {[%clk 0:00:02]}  h2+ {[%clk 0:00:24]} 80. Rxh2 {[%clk 0:00:03]}  Nxh2 {[%clk 0:00:24]} 81. Kh1 {[%clk 0:00:03]}  Rf1# {[%clk 0:00:25]} 0-1


[Site "https://www.chess.com"]

[Event "Titled Tuesday Blitz April 25 Early 2023"]
[White "Vlassov, Nikolai"]
[Black "Shuvalov, Evgenij"]
[WhiteFideId "4103360"]
[BlackFideId "4187237"]
[WhiteElo "2324"]
[BlackElo "2080"]
[Result "1/2-1/2"]
[Round "10"]
[TimeControl "180+2"]
[Date "2023.04.25"]
[WhiteClock "0:00:10"]
[BlackClock "0:00:08"]

1. g4 {[%clk 0:02:59]}  d5 {[%clk 0:02:58]} 2. Bg2 {[%clk 0:02:59]}  Bxg4 {[%clk 0:02:57]} 3. c4 {[%clk 0:02:59]}  c6 {[%clk 0:02:54]} 4. Qb3 {[%clk 0:02:58]}  Nf6 {[%clk 0:02:45]} 5. Qxb7 {[%clk 0:02:51]}  Nbd7 {[%clk 0:02:45]} 6. d4 {[%clk 0:02:51]}  e5 {[%clk 0:02:32]} 7. cxd5 {[%clk 0:02:36]}  cxd5 {[%clk 0:02:29]} 8. dxe5 {[%clk 0:02:33]}  Nxe5 {[%clk 0:02:24]} 9. Bf4 {[%clk 0:02:26]}  Bd6 {[%clk 0:02:19]} 10. Nc3 {[%clk 0:02:11]}  Rb8 {[%clk 0:02:12]} 11. Qxa7 {[%clk 0:02:05]}  O-O {[%clk 0:02:09]} 12. Kf1 {[%clk 0:01:42]}  Rxb2 {[%clk 0:01:59]} 13. Rd1 {[%clk 0:01:36]}  Nc6 {[%clk 0:01:37]} 14. Qe3 {[%clk 0:01:26]}  Re8 {[%clk 0:01:32]} 15. Qg3 {[%clk 0:01:24]}  Bxf4 {[%clk 0:01:26]} 16. Qxf4 {[%clk 0:01:24]}  Ne7 {[%clk 0:01:05]} 17. Nxd5 {[%clk 0:01:10]}  Nexd5 {[%clk 0:01:00]} 18. Bxd5 {[%clk 0:01:10]}  Nxd5 {[%clk 0:00:34]} 19. Qxg4 {[%clk 0:01:10]}  Ne3+ {[%clk 0:00:34]} 20. fxe3 {[%clk 0:01:10]}  Qxd1+ {[%clk 0:00:34]} 21. Kf2 {[%clk 0:01:09]}  Rb1 {[%clk 0:00:30]} 22. Qd4 {[%clk 0:01:00]}  Qf1+ {[%clk 0:00:28]} 23. Kg3 {[%clk 0:01:00]}  h6 {[%clk 0:00:25]} 24. h4 {[%clk 0:00:57]}  Rb5 {[%clk 0:00:19]} 25. a4 {[%clk 0:00:56]}  Rbe5 {[%clk 0:00:19]} 26. Nf3 {[%clk 0:00:41]}  Qxh1 {[%clk 0:00:16]} 27. Nxe5 {[%clk 0:00:41]}  Qg1+ {[%clk 0:00:16]} 28. Kf3 {[%clk 0:00:39]}  Qf1+ {[%clk 0:00:16]} 29. Kg3 {[%clk 0:00:36]}  Qf6 {[%clk 0:00:14]} 30. Nf3 {[%clk 0:00:30]}  Qg6+ {[%clk 0:00:14]} 31. Kf2 {[%clk 0:00:30]}  Re4 {[%clk 0:00:14]} 32. Qd8+ {[%clk 0:00:29]}  Kh7 {[%clk 0:00:14]} 33. a5 {[%clk 0:00:30]}  Ra4 {[%clk 0:00:14]} 34. Qd3 {[%clk 0:00:26]}  Rxa5 {[%clk 0:00:12]} 35. e4 {[%clk 0:00:23]}  Ra4 {[%clk 0:00:11]} 36. e5 {[%clk 0:00:22]}  Re4 {[%clk 0:00:10]} 37. Ke1 {[%clk 0:00:20]}  Qf5 {[%clk 0:00:10]} 38. Kd2 {[%clk 0:00:20]}  Qf4+ {[%clk 0:00:10]} 39. Kd1 {[%clk 0:00:20]}  g6 {[%clk 0:00:10]} 40. h5 {[%clk 0:00:20]}  Re3 {[%clk 0:00:09]} 41. hxg6+ {[%clk 0:00:18]}  fxg6 {[%clk 0:00:09]} 42. Qd7+ {[%clk 0:00:18]}  Kh8 {[%clk 0:00:09]} 43. Qc8+ {[%clk 0:00:16]}  Kg7 {[%clk 0:00:10]} 44. Qb7+ {[%clk 0:00:15]}  Qf7 {[%clk 0:00:10]} 45. Qb6 {[%clk 0:00:15]}  Qd5+ {[%clk 0:00:09]} 46. Ke1 {[%clk 0:00:14]}  Rxf3 {[%clk 0:00:09]} 47. exf3 {[%clk 0:00:14]}  Qxe5+ {[%clk 0:00:10]} 48. Kf2 {[%clk 0:00:14]}  Qh2+ {[%clk 0:00:09]} 49. Ke3 {[%clk 0:00:15]}  Qe5+ {[%clk 0:00:09]} 50. Kf2 {[%clk 0:00:15]}  Qf6 {[%clk 0:00:09]} 51. Qc7+ {[%clk 0:00:15]}  Qf7 {[%clk 0:00:09]} 52. Qe5+ {[%clk 0:00:15]}  Kh7 {[%clk 0:00:10]} 53. Kg3 {[%clk 0:00:14]}  h5 {[%clk 0:00:10]} 54. Kg2 {[%clk 0:00:14]}  Kh6 {[%clk 0:00:10]} 55. Qe3+ {[%clk 0:00:14]}  Kh7 {[%clk 0:00:10]} 56. Qe4 {[%clk 0:00:14]}  Kg7 {[%clk 0:00:11]} 57. Qe5+ {[%clk 0:00:14]}  Qf6 {[%clk 0:00:11]} 58. Qc7+ {[%clk 0:00:14]}  Kh6 {[%clk 0:00:11]} 59. Kf2 {[%clk 0:00:14]}  Qh4+ {[%clk 0:00:11]} 60. Kg2 {[%clk 0:00:13]}  Qg5+ {[%clk 0:00:11]} 61. Kf2 {[%clk 0:00:14]}  h4 {[%clk 0:00:10]} 62. Qc8 {[%clk 0:00:13]}  Qf6 {[%clk 0:00:10]} 63. Qg4 {[%clk 0:00:12]}  Qg5 {[%clk 0:00:08]} 64. Qc8 {[%clk 0:00:10]}  Qg3+ {[%clk 0:00:09]} 65. Ke3 {[%clk 0:00:10]}  Qe1+ {[%clk 0:00:08]} 66. Kf4 {[%clk 0:00:09]}  Qg3+ {[%clk 0:00:08]} 67. Ke3 {[%clk 0:00:10]}  Qe1+ {[%clk 0:00:08]} 68. Kf4 {[%clk 0:00:10]}  Qg3+ {[%clk 0:00:08]} 69. Ke3 {[%clk 0:00:10]} 1/2-1/2


[Site "https://www.chess.com"]

[Event "Titled Tuesday Blitz April 25 Early 2023"]
[White "Chirivi C, Jenny Astrid"]
[Black "Hirneise, Jens"]
[WhiteFideId "4403061"]
[BlackFideId "24614734"]
[WhiteElo "2001"]
[BlackElo "2345"]
[Result "1-0"]
[Round "10"]
[TimeControl "180+2"]
[Date "2023.04.25"]
[WhiteClock "0:00:14"]
[BlackClock "0:00:10"]

1. d4 {[%clk 0:02:58]}  Nf6 {[%clk 0:02:53]} 2. c4 {[%clk 0:02:57]}  e6 {[%clk 0:02:53]} 3. Nc3 {[%clk 0:02:56]}  d5 {[%clk 0:02:51]} 4. cxd5 {[%clk 0:02:55]}  exd5 {[%clk 0:02:51]} 5. Bg5 {[%clk 0:02:55]}  Be7 {[%clk 0:02:50]} 6. e3 {[%clk 0:02:54]}  O-O {[%clk 0:02:50]} 7. Qc2 {[%clk 0:02:54]}  Nbd7 {[%clk 0:02:49]} 8. Bd3 {[%clk 0:02:53]}  Re8 {[%clk 0:02:49]} 9. Nge2 {[%clk 0:02:52]}  Nf8 {[%clk 0:02:48]} 10. O-O {[%clk 0:02:49]}  Ng6 {[%clk 0:02:41]} 11. f3 {[%clk 0:02:48]}  c6 {[%clk 0:02:37]} 12. Rae1 {[%clk 0:02:44]}  Nh5 {[%clk 0:02:31]} 13. Bxe7 {[%clk 0:02:42]}  Qxe7 {[%clk 0:02:31]} 14. e4 {[%clk 0:02:38]}  dxe4 {[%clk 0:02:30]} 15. fxe4 {[%clk 0:02:37]}  Qg5 {[%clk 0:02:28]} 16. Bc4 {[%clk 0:02:03]}  Nh4 {[%clk 0:02:24]} 17. Bxf7+ {[%clk 0:01:58]}  Kh8 {[%clk 0:02:19]} 18. Ng3 {[%clk 0:01:57]}  Bg4 {[%clk 0:02:07]} 19. Bxe8 {[%clk 0:01:32]}  Rxe8 {[%clk 0:02:08]} 20. Qf2 {[%clk 0:01:26]}  h6 {[%clk 0:01:56]} 21. Nxh5 {[%clk 0:01:18]}  Bxh5 {[%clk 0:01:54]} 22. Qg3 {[%clk 0:01:18]}  Qd8 {[%clk 0:01:45]} 23. d5 {[%clk 0:01:17]}  Ng6 {[%clk 0:01:37]} 24. Kh1 {[%clk 0:01:07]}  Re5 {[%clk 0:01:32]} 25. Rf5 {[%clk 0:01:03]}  Qe7 {[%clk 0:01:21]} 26. Ref1 {[%clk 0:00:42]}  Kh7 {[%clk 0:01:09]} 27. dxc6 {[%clk 0:00:38]}  bxc6 {[%clk 0:01:08]} 28. h3 {[%clk 0:00:34]}  a5 {[%clk 0:00:55]} 29. a3 {[%clk 0:00:32]}  Rc5 {[%clk 0:00:33]} 30. Rxc5 {[%clk 0:00:28]}  Qxc5 {[%clk 0:00:34]} 31. Rf5 {[%clk 0:00:27]}  Qb6 {[%clk 0:00:25]} 32. Rxh5 {[%clk 0:00:24]}  Qxb2 {[%clk 0:00:25]} 33. Rf5 {[%clk 0:00:22]}  Qc1+ {[%clk 0:00:23]} 34. Kh2 {[%clk 0:00:21]}  Qxa3 {[%clk 0:00:22]} 35. Rf7 {[%clk 0:00:20]}  Qb3 {[%clk 0:00:19]} 36. Rc7 {[%clk 0:00:20]}  a4 {[%clk 0:00:16]} 37. e5 {[%clk 0:00:19]}  a3 {[%clk 0:00:14]} 38. Ne4 {[%clk 0:00:19]}  Qxg3+ {[%clk 0:00:09]} 39. Nxg3 {[%clk 0:00:18]}  Nxe5 {[%clk 0:00:10]} 40. Nf5 {[%clk 0:00:18]}  Kg6 {[%clk 0:00:10]} 41. Nxg7 {[%clk 0:00:16]}  a2 {[%clk 0:00:10]} 42. Ra7 {[%clk 0:00:15]}  a1=Q {[%clk 0:00:09]} 43. Rxa1 {[%clk 0:00:15]}  Kxg7 {[%clk 0:00:10]} 44. Kg3 {[%clk 0:00:14]}  Kf6 {[%clk 0:00:11]} 45. Kf4 {[%clk 0:00:14]}  c5 {[%clk 0:00:10]} 46. Ke4 {[%clk 0:00:14]}  c4 {[%clk 0:00:09]} 47. Ra6+ {[%clk 0:00:13]}  Kg5 {[%clk 0:00:09]} 48. Kxe5 {[%clk 0:00:13]}  Kh4 {[%clk 0:00:09]} 49. Rxh6+ {[%clk 0:00:11]}  Kg3 {[%clk 0:00:09]} 50. Rc6 {[%clk 0:00:11]}  Kxg2 {[%clk 0:00:08]} 51. h4 {[%clk 0:00:12]}  Kg3 {[%clk 0:00:08]} 52. h5 {[%clk 0:00:12]}  Kg4 {[%clk 0:00:08]} 53. h6 {[%clk 0:00:13]}  Kg5 {[%clk 0:00:09]} 54. h7 {[%clk 0:00:14]}  c3 {[%clk 0:00:09]} 55. h8=Q {[%clk 0:00:13]}  c2 {[%clk 0:00:10]} 56. Qg7+ {[%clk 0:00:14]}  Kh5 {[%clk 0:00:10]} 57. Rh6# {[%clk 0:00:14]} 1-0


[Site "https://www.chess.com"]

[Event "Titled Tuesday Blitz April 25 Early 2023"]
[White "Rosenberg, Evan S"]
[Black "Kuzmin, Roman"]
[WhiteFideId "2019299"]
[BlackFideId "44134932"]
[WhiteElo "2309"]
[BlackElo "2192"]
[Result "1-0"]
[Round "10"]
[TimeControl "180+2"]
[Date "2023.04.25"]
[WhiteClock "0:01:57"]
[BlackClock "0:00:56"]

1. d4 {[%clk 0:03:00]}  Nf6 {[%clk 0:02:59]} 2. Nf3 {[%clk 0:03:01]}  e6 {[%clk 0:03:00]} 3. g3 {[%clk 0:03:00]}  d5 {[%clk 0:03:00]} 4. Bg2 {[%clk 0:03:00]}  Be7 {[%clk 0:03:00]} 5. O-O {[%clk 0:03:01]}  O-O {[%clk 0:03:01]} 6. c4 {[%clk 0:03:01]}  Nbd7 {[%clk 0:03:01]} 7. Nc3 {[%clk 0:02:59]}  dxc4 {[%clk 0:02:49]} 8. e4 {[%clk 0:02:56]}  b5 {[%clk 0:02:44]} 9. e5 {[%clk 0:02:52]}  Nd5 {[%clk 0:02:44]} 10. Nxb5 {[%clk 0:02:51]}  N7b6 {[%clk 0:02:36]} 11. a4 {[%clk 0:02:46]}  a5 {[%clk 0:02:29]} 12. h4 {[%clk 0:02:45]}  h6 {[%clk 0:02:21]} 13. Bd2 {[%clk 0:02:40]}  c6 {[%clk 0:02:17]} 14. Nc3 {[%clk 0:02:38]}  c5 {[%clk 0:02:14]} 15. Qc1 {[%clk 0:02:22]}  Re8 {[%clk 0:02:06]} 16. Bxh6 {[%clk 0:02:15]}  gxh6 {[%clk 0:01:55]} 17. Qxh6 {[%clk 0:02:16]}  Nxc3 {[%clk 0:01:46]} 18. bxc3 {[%clk 0:02:11]}  cxd4 {[%clk 0:01:44]} 19. Nxd4 {[%clk 0:02:03]}  Nd5 {[%clk 0:01:40]} 20. Be4 {[%clk 0:02:01]}  f5 {[%clk 0:01:33]} 21. Nxe6 {[%clk 0:01:58]}  Bf8 {[%clk 0:00:55]} 22. Qg6+ {[%clk 0:01:57]}  Kh8 {[%clk 0:00:56]} 23. Nxd8 {[%clk 0:01:57]} 1-0


[Site "https://www.chess.com"]